{"text_format":"3","workbook":"xlsx","n_sheets":2,"sheets":["RSVP Tracker","RSVP Summary"],"not_rendered":{"charts":2,"defined_names":22},"read":"whole","date_system":"1900"}

{"sheet":"RSVP Tracker","index":0,"n_rows":15,"n_cols":15,"rows_kept":15,"merged":[[0,3,0,4],[0,5,0,7],[1,3,1,14]]}
[{"$nulls":5},"POVZETEK ODGOVOROV"]
[null,"DATUM POROKE",null,"Sledilnik povabil na poroko"]
[null,{"$f":"TODAY()+283","v":"2018-12-01"},null,"IME GOSTA","POSLANO?","Odgovorite, prosim","ZABAVA","GOST","SORODSTVENO RAZMERJE","NASLOV","MESTO","DRŽAVA","Poštna številka","TELEFON","E-POŠTNI NASLOV OSEBE ZA STIK"]
[null,"ŠTEVILO PREOSTALIH DNI",null,"Ime 1","Da","Da",1,"Bodoči zakonski partner 1","Brat","Naslov","Mesto","Država","Poštna številka","Telefon","nekdo@example.com"]
[null,{"$f":"DaysRemaining","v":283},null,"Ime 2","Da","Ne",3,"Bodoči zakonski partner 1","Prijatelj","Naslov","Mesto","Država","Poštna številka","Telefon","nekdo@example.com"]
[null,"SE BODO UDELEŽILI",null,"Ime 3","Da","Da",1,"Drugo","Prijatelj","Naslov","Mesto","Država","Poštna številka","Telefon","nekdo@example.com"]
[null,{"$f":"TotalAttending","v":12},null,"Ime 4","Da","Ne",2,"Bodoči zakonski partner 2","Prijatelj","Naslov","Mesto","Država","Poštna številka","Telefon","nekdo@example.com"]
[null,"SE NE BODO UDELEŽILI",null,"Ime 5","Da","Da",2,"Bodoči zakonski partner 2","Prijatelj","Naslov","Mesto","Država","Poštna številka","Telefon","nekdo@example.com"]
[null,{"$f":"TotalNotAttending","v":6},null,"Ime 6","Da","Pogojno",null,"Drugo","Prijatelj","Naslov","Mesto","Država","Poštna številka","Telefon","nekdo@example.com"]
[null,"NISO JAVILI",null,"Ime 7","Da","Da",2,"Bodoči zakonski partner 2","Prijatelj","Naslov","Mesto","Država","Poštna številka","Telefon","nekdo@example.com"]
[null,{"$f":"OutstandingRSVP","v":1},null,"Ime 8","Da","Ne",1,"Drugo","Prijatelj","Naslov","Mesto","Država","Poštna številka","Telefon","nekdo@example.com"]
[{"$nulls":3},"Ime 9","Da","Da",4,"Bodoči zakonski partner 1","Prijatelj","Naslov","Mesto","Država","Poštna številka","Telefon","nekdo@example.com"]
[{"$nulls":3},"Ime 10","Da","Da",2,"Bodoči zakonski partner 1","Prijatelj","Naslov","Mesto","Država","Poštna številka","Telefon","nekdo@example.com"]
[{"$nulls":3},"Ime 11","Da",null,null,"Bodoči zakonski partner 2","Brat","Naslov","Mesto","Država","Poštna številka","Telefon","nekdo@example.com"]
[{"$nulls":3},"SKUPAJ:",{"$f":"COUNTIF('RSVP Tracker'!$E$4:$E$14,\"Yes\")","v":11},{"$f":"COUNTA('RSVP Tracker'!$F$4:$F$14)","v":10},{"$f":"SUBTOTAL(109,tblInvites[ZABAVA])","v":18}]

{"sheet":"RSVP Summary","index":1,"n_rows":11,"n_cols":15,"rows_kept":11,"merged":[[0,3,0,4],[0,5,0,8],[1,3,1,11],[2,3,6,3],[2,4,6,4],[7,3,11,3],[7,4,11,4]]}
[{"$nulls":3},"SLEDILNIK ODGOVOROV"]
[null,"DATUM POROKE",null,"povzetek odgovorov",{"$nulls":10},"opombe"]
[null,{"$f":"WeddingDate","v":"2018-12-01"},null,"DA","V tej celici je gručni palični grafikon, kjer so prikazane vrste gostov za odgovore »Da«."]
[null,"ŠTEVILO PREOSTALIH DNI",{"$nulls":3},"DRUGO",{"$f":"IFERROR(SUMIFS(tblInvites[ZABAVA],tblInvites[GOST],\"=Other\",tblInvites[Odgovorite, prosim],\"Yes\"),0)","v":1},{"$f":"tblInvites[[#Totals],[SENT?]]","v":11}]
[null,{"$f":"DaysRemaining","v":283},{"$nulls":3},"BODOČI ZAKONSKI PARTNER 2",{"$f":"IFERROR(SUMIFS(tblInvites[ZABAVA],tblInvites[GOST],\"=Spouse-to-be 2\",tblInvites[Odgovorite, prosim],\"Yes\"),0)","v":4},{"$f":"tblInvites[[#Totals],[SENT?]]","v":11}]
[null,"SE BODO UDELEŽILI",{"$nulls":3},"BODOČI ZAKONSKI PARTNER 1",{"$f":"IFERROR(SUMIFS(tblInvites[ZABAVA],tblInvites[GOST],\"=Spouse-to-be 1\",tblInvites[Odgovorite, prosim],\"Yes\"),0)","v":7},{"$f":"tblInvites[[#Totals],[SENT?]]","v":11}]
[null,{"$f":"TotalAttending","v":12}]
[null,"SE NE BODO UDELEŽILI",null,"NE","V tej celici je gručni palični grafikon, kjer so prikazane vrste gostov za odgovore »Ne«."]
[null,{"$f":"TotalNotAttending","v":6},{"$nulls":3},"DRUGO",{"$f":"IFERROR(SUMIFS(tblInvites[ZABAVA],tblInvites[GOST],\"=Other\",tblInvites[Odgovorite, prosim],\"No\"),0)","v":1},{"$f":"tblInvites[[#Totals],[SENT?]]","v":11}]
[null,"NISO JAVILI",{"$nulls":3},"BODOČI ZAKONSKI PARTNER 2",{"$f":"IFERROR(SUMIFS(tblInvites[ZABAVA],tblInvites[GOST],\"=Spouse-to-be 2\",tblInvites[Odgovorite, prosim],\"No\"),0)","v":2},{"$f":"tblInvites[[#Totals],[SENT?]]","v":11}]
[null,{"$f":"OutstandingRSVP","v":1},{"$nulls":3},"BODOČI ZAKONSKI PARTNER 1",{"$f":"IFERROR(SUMIFS(tblInvites[ZABAVA],tblInvites[GOST],\"=Spouse-to-be 1\",tblInvites[Odgovorite, prosim],\"No\"),0)","v":3},{"$f":"tblInvites[[#Totals],[SENT?]]","v":11}]